[Event "Titled Tuesday Blitz August 22 Late 2023"]
[White "Cordova, Emilio"]
[Black "Gogolev, Artem"]
[WhiteFideId "3801497"]
[BlackFideId "4116615"]
[WhiteElo "2876"]
[BlackElo "2464"]
[Result "0-1"]
[Round "1"]
[TimeControl "180+1"]
[Date "2023.08.22"]
[WhiteClock "0:00:20"]
[BlackClock "0:00:11"]
[Board "52"]

1. d4 {[%clk 0:03:00]}  Nf6 {[%clk 0:02:48]} 2. c4 {[%clk 0:03:01]}  d6 {[%clk 0:02:45]} 3. Nc3 {[%clk 0:03:00]}  e5 {[%clk 0:02:44]} 4. Nf3 {[%clk 0:02:59]}  e4 {[%clk 0:02:41]} 5. Ng1 {[%clk 0:02:55]}  g6 {[%clk 0:02:34]} 6. Bg5 {[%clk 0:02:55]}  Bf5 {[%clk 0:02:31]} 7. e3 {[%clk 0:02:54]}  h6 {[%clk 0:02:30]} 8. Bxf6 {[%clk 0:02:52]}  Qxf6 {[%clk 0:02:31]} 9. g4 {[%clk 0:02:53]}  Bd7 {[%clk 0:02:30]} 10. Nxe4 {[%clk 0:02:53]}  Qe7 {[%clk 0:02:29]} 11. Nc3 {[%clk 0:02:50]}  Bg7 {[%clk 0:02:27]} 12. Bg2 {[%clk 0:02:49]}  c6 {[%clk 0:02:21]} 13. h3 {[%clk 0:02:49]}  h5 {[%clk 0:02:20]} 14. gxh5 {[%clk 0:02:48]}  Rxh5 {[%clk 0:02:12]} 15. Nge2 {[%clk 0:02:48]}  Na6 {[%clk 0:02:01]} 16. Nf4 {[%clk 0:02:42]}  Rh4 {[%clk 0:02:01]} 17. Qf3 {[%clk 0:02:36]}  Bxd4 {[%clk 0:01:57]} 18. Ne4 {[%clk 0:02:24]}  Bxb2 {[%clk 0:01:47]} 19. Rb1 {[%clk 0:02:24]}  Be5 {[%clk 0:01:35]} 20. Rxb7 {[%clk 0:02:05]}  Bxf4 {[%clk 0:01:27]} 21. Rxd7 {[%clk 0:01:57]}  Kxd7 {[%clk 0:01:23]} 22. O-O {[%clk 0:01:40]}  Be5 {[%clk 0:00:45]} 23. Rd1 {[%clk 0:01:25]}  Rc8 {[%clk 0:00:29]} 24. Rd3 {[%clk 0:01:11]}  Ke8 {[%clk 0:00:27]} 25. Qd1 {[%clk 0:00:46]}  Rxe4 {[%clk 0:00:18]} 26. Bxe4 {[%clk 0:00:46]}  Nc5 {[%clk 0:00:18]} 27. Qg4 {[%clk 0:00:38]}  Qe6 {[%clk 0:00:15]} 28. Qxe6+ {[%clk 0:00:36]}  fxe6 {[%clk 0:00:10]} 29. Bxg6+ {[%clk 0:00:26]}  Ke7 {[%clk 0:00:11]} 30. Ra3 {[%clk 0:00:27]}  Rg8 {[%clk 0:00:11]} 31. f4 {[%clk 0:00:26]}  Rxg6+ {[%clk 0:00:10]} 32. Kf2 {[%clk 0:00:27]}  Bb2 {[%clk 0:00:10]} 33. Rxa7+ {[%clk 0:00:26]}  Kf6 {[%clk 0:00:11]} 34. Kf3 {[%clk 0:00:27]}  d5 {[%clk 0:00:11]} 35. cxd5 {[%clk 0:00:26]}  cxd5 {[%clk 0:00:12]} 36. a4 {[%clk 0:00:26]}  Ne4 {[%clk 0:00:12]} 37. a5 {[%clk 0:00:25]}  Rg3+ {[%clk 0:00:12]} 38. Ke2 {[%clk 0:00:25]}  Rg2+ {[%clk 0:00:13]} 39. Kf1 {[%clk 0:00:25]}  Rf2+ {[%clk 0:00:13]} 40. Kg1 {[%clk 0:00:25]}  Bc1 {[%clk 0:00:12]} 41. Rb7 {[%clk 0:00:24]}  Bxe3 {[%clk 0:00:12]} 42. Rb3 {[%clk 0:00:20]}  Re2+ {[%clk 0:00:11]} 0-1


[Site "https://www.chess.com"]

[Event "Titled Tuesday Blitz August 22 Late 2023"]
[White "dodoucb"]
[Black "Moskalenko, Alexander"]
[BlackFideId "4155351"]
[WhiteElo "2463"]
[BlackElo "2873"]
[Result "0-1"]
[Round "1"]
[TimeControl "180+1"]
[Date "2023.08.22"]
[WhiteClock "0:00:14"]
[BlackClock "0:02:01"]
[Board "53"]

1. d4 {[%clk 0:02:59]}  d6 {[%clk 0:03:00]} 2. Nf3 {[%clk 0:02:59]}  g6 {[%clk 0:02:59]} 3. c4 {[%clk 0:02:59]}  Bg7 {[%clk 0:03:00]} 4. Nc3 {[%clk 0:03:00]}  e5 {[%clk 0:03:00]} 5. Bg5 {[%clk 0:02:59]}  f6 {[%clk 0:02:59]} 6. Bh4 {[%clk 0:02:50]}  Nd7 {[%clk 0:03:00]} 7. e3 {[%clk 0:02:50]}  Nh6 {[%clk 0:03:01]} 8. Bd3 {[%clk 0:02:49]}  O-O {[%clk 0:03:00]} 9. O-O {[%clk 0:02:48]}  c6 {[%clk 0:02:59]} 10. Ne4 {[%clk 0:02:35]}  Nf7 {[%clk 0:02:56]} 11. dxe5 {[%clk 0:02:33]}  dxe5 {[%clk 0:02:54]} 12. h3 {[%clk 0:01:59]}  g5 {[%clk 0:02:50]} 13. Bg3 {[%clk 0:01:57]}  f5 {[%clk 0:02:51]} 14. Nc3 {[%clk 0:01:30]}  e4 {[%clk 0:02:51]} 15. Nxe4 {[%clk 0:01:29]}  fxe4 {[%clk 0:02:52]} 16. Bxe4 {[%clk 0:01:30]}  Nc5 {[%clk 0:02:52]} 17. Qc2 {[%clk 0:01:27]}  Nxe4 {[%clk 0:02:50]} 18. Qxe4 {[%clk 0:01:28]}  Bxb2 {[%clk 0:02:45]} 19. Rad1 {[%clk 0:01:24]}  Qe8 {[%clk 0:02:46]} 20. Qc2 {[%clk 0:01:10]}  Bg7 {[%clk 0:02:46]} 21. Nd4 {[%clk 0:01:04]}  Nh6 {[%clk 0:02:34]} 22. Rfe1 {[%clk 0:01:02]}  Nf5 {[%clk 0:02:33]} 23. Bh2 {[%clk 0:01:00]}  Nh4 {[%clk 0:02:32]} 24. Bd6 {[%clk 0:00:55]}  Rf7 {[%clk 0:02:29]} 25. f4 {[%clk 0:00:55]}  g4 {[%clk 0:02:26]} 26. Qf2 {[%clk 0:00:53]}  Nf5 {[%clk 0:02:26]} 27. Nxf5 {[%clk 0:00:52]}  Bxf5 {[%clk 0:02:27]} 28. e4 {[%clk 0:00:52]}  Bd7 {[%clk 0:02:18]} 29. hxg4 {[%clk 0:00:45]}  Bxg4 {[%clk 0:02:17]} 30. Rd3 {[%clk 0:00:45]}  Qe6 {[%clk 0:02:15]} 31. c5 {[%clk 0:00:44]}  Re8 {[%clk 0:02:12]} 32. Rg3 {[%clk 0:00:43]}  h5 {[%clk 0:02:11]} 33. e5 {[%clk 0:00:39]}  Qf5 {[%clk 0:02:08]} 34. Rf1 {[%clk 0:00:35]}  Qe4 {[%clk 0:02:06]} 35. Re3 {[%clk 0:00:32]}  Qd4 {[%clk 0:02:05]} 36. Kh2 {[%clk 0:00:23]}  Re6 {[%clk 0:02:04]} 37. g3 {[%clk 0:00:23]}  Rg6 {[%clk 0:02:02]} 38. e6 {[%clk 0:00:14]}  Bxe6 {[%clk 0:02:01]} 0-1


[Site "https://www.chess.com"]

[Event "Titled Tuesday Blitz August 22 Late 2023"]
[White "Zierk, Steven"]
[Black "Hajiyev, Kanan"]
[WhiteFideId "2034255"]
[BlackFideId "13404148"]
[WhiteElo "2871"]
[BlackElo "2460"]
[Result "1-0"]
[Round "1"]
[TimeControl "180+1"]
[Date "2023.08.22"]
[WhiteClock "0:00:38"]
[BlackClock "0:00:02"]
[Board "54"]

1. e4 {[%clk 0:03:00]}  c6 {[%clk 0:02:59]} 2. d4 {[%clk 0:03:00]}  d5 {[%clk 0:03:00]} 3. exd5 {[%clk 0:03:00]}  cxd5 {[%clk 0:03:01]} 4. Bd3 {[%clk 0:03:00]}  Nc6 {[%clk 0:03:02]} 5. c3 {[%clk 0:03:00]}  Qc7 {[%clk 0:03:02]} 6. Ne2 {[%clk 0:03:00]}  Nf6 {[%clk 0:03:03]} 7. Bf4 {[%clk 0:02:58]}  e5 {[%clk 0:03:04]} 8. dxe5 {[%clk 0:02:58]}  Nxe5 {[%clk 0:03:05]} 9. O-O {[%clk 0:02:58]}  Bd6 {[%clk 0:03:05]} 10. Nd4 {[%clk 0:02:52]}  O-O {[%clk 0:03:03]} 11. Nb5 {[%clk 0:02:51]}  Qb6 {[%clk 0:02:58]} 12. Nxd6 {[%clk 0:02:49]}  Qxd6 {[%clk 0:02:59]} 13. Re1 {[%clk 0:02:49]}  Re8 {[%clk 0:02:57]} 14. Nd2 {[%clk 0:02:37]}  Bg4 {[%clk 0:02:27]} 15. f3 {[%clk 0:02:30]}  Qb6+ {[%clk 0:02:24]} 16. Be3 {[%clk 0:02:28]}  Qxb2 {[%clk 0:01:59]} 17. Rb1 {[%clk 0:02:22]}  Qxc3 {[%clk 0:01:25]} 18. Rb3 {[%clk 0:02:17]}  Qc7 {[%clk 0:01:24]} 19. Bf4 {[%clk 0:01:49]}  Nxf3+ {[%clk 0:00:54]} 20. gxf3 {[%clk 0:01:48]}  Qxf4 {[%clk 0:00:50]} 21. fxg4 {[%clk 0:01:41]}  Nxg4 {[%clk 0:00:43]} 22. Nf3 {[%clk 0:01:36]}  Rxe1+ {[%clk 0:00:40]} 23. Qxe1 {[%clk 0:01:37]}  g6 {[%clk 0:00:30]} 24. Qg3 {[%clk 0:01:34]}  Qc1+ {[%clk 0:00:19]} 25. Qe1 {[%clk 0:01:22]}  Qc5+ {[%clk 0:00:15]} 26. Kg2 {[%clk 0:01:20]}  Ne3+ {[%clk 0:00:11]} 27. Kh1 {[%clk 0:01:20]}  Ng4 {[%clk 0:00:09]} 28. Kg2 {[%clk 0:01:10]}  Ne3+ {[%clk 0:00:09]} 29. Kh1 {[%clk 0:01:10]}  Ng4 {[%clk 0:00:09]} 30. Rb2 {[%clk 0:01:09]}  Rc8 {[%clk 0:00:09]} 31. Rc2 {[%clk 0:01:07]}  Qf8 {[%clk 0:00:09]} 32. h3 {[%clk 0:01:02]}  Rxc2 {[%clk 0:00:09]} 33. Bxc2 {[%clk 0:01:03]}  Nf6 {[%clk 0:00:08]} 34. Qe5 {[%clk 0:01:00]}  Kg7 {[%clk 0:00:04]} 35. Nd4 {[%clk 0:00:53]}  Qc5 {[%clk 0:00:05]} 36. h4 {[%clk 0:00:51]}  Qb6 {[%clk 0:00:01]} 37. h5 {[%clk 0:00:48]}  gxh5 {[%clk 0:00:01]} 38. Nf5+ {[%clk 0:00:46]}  Kf8 {[%clk 0:00:02]} 39. Qe7+ {[%clk 0:00:39]}  Kg8 {[%clk 0:00:02]} 40. Nd6 {[%clk 0:00:39]}  Qc6 {[%clk 0:00:01]} 41. Qxf7+ {[%clk 0:00:37]}  Kh8 {[%clk 0:00:02]} 42. Qf8+ {[%clk 0:00:37]}  Ng8 {[%clk 0:00:02]} 43. Nf7# {[%clk 0:00:38]} 1-0


[Site "https://www.chess.com"]

[Event "Titled Tuesday Blitz August 22 Late 2023"]
[White "Fernandez Lopez, Ruben"]
[Black "Mekhitarian, Krikor Sevag"]
[WhiteFideId "24518298"]
[BlackFideId "2107660"]
[WhiteElo "2460"]
[BlackElo "2870"]
[Result "1-0"]
[Round "1"]
[TimeControl "180+1"]
[Date "2023.08.22"]
[WhiteClock "0:01:39"]
[BlackClock "0:00:17"]
[Board "55"]

1. b3 {[%clk 0:03:00]}  Nf6 {[%clk 0:02:52]} 2. Bb2 {[%clk 0:03:00]}  d5 {[%clk 0:02:48]} 3. e3 {[%clk 0:03:00]}  g6 {[%clk 0:02:39]} 4. c4 {[%clk 0:03:00]}  dxc4 {[%clk 0:02:38]} 5. bxc4 {[%clk 0:02:58]}  c5 {[%clk 0:02:38]} 6. Nf3 {[%clk 0:02:58]}  Bg7 {[%clk 0:02:28]} 7. Be2 {[%clk 0:02:58]}  O-O {[%clk 0:02:28]} 8. O-O {[%clk 0:02:57]}  Nc6 {[%clk 0:02:26]} 9. Nc3 {[%clk 0:02:56]}  b6 {[%clk 0:02:19]} 10. Qa4 {[%clk 0:02:49]}  Bd7 {[%clk 0:02:17]} 11. Qb3 {[%clk 0:02:41]}  Rc8 {[%clk 0:02:11]} 12. Rfd1 {[%clk 0:02:39]}  Bf5 {[%clk 0:02:05]} 13. d3 {[%clk 0:02:36]}  Qd7 {[%clk 0:01:56]} 14. Rac1 {[%clk 0:02:34]}  Rfd8 {[%clk 0:01:55]} 15. h3 {[%clk 0:02:34]}  h6 {[%clk 0:01:52]} 16. Nd5 {[%clk 0:02:22]}  Nxd5 {[%clk 0:01:28]} 17. cxd5 {[%clk 0:02:20]}  Na5 {[%clk 0:01:29]} 18. Qc2 {[%clk 0:02:20]}  Bxb2 {[%clk 0:01:25]} 19. Qxb2 {[%clk 0:02:20]}  Qd6 {[%clk 0:01:20]} 20. e4 {[%clk 0:02:16]}  Bd7 {[%clk 0:01:19]} 21. d4 {[%clk 0:02:11]}  c4 {[%clk 0:01:17]} 22. Rc3 {[%clk 0:02:07]}  b5 {[%clk 0:01:16]} 23. a3 {[%clk 0:02:03]}  a6 {[%clk 0:01:16]} 24. Qd2 {[%clk 0:02:03]}  Kg7 {[%clk 0:01:15]} 25. Qe3 {[%clk 0:01:59]}  Nb3 {[%clk 0:01:12]} 26. Nd2 {[%clk 0:01:56]}  Nxd2 {[%clk 0:01:09]} 27. Qxd2 {[%clk 0:01:52]}  Be8 {[%clk 0:00:58]} 28. Bf3 {[%clk 0:01:51]}  e5 {[%clk 0:00:56]} 29. dxe6 {[%clk 0:01:48]}  Qe5 {[%clk 0:00:57]} 30. dxe5 {[%clk 0:01:48]}  Rxd2 {[%clk 0:00:39]} 31. Rxd2 {[%clk 0:01:49]}  fxe6 {[%clk 0:00:38]} 32. Rd6 {[%clk 0:01:45]}  a5 {[%clk 0:00:26]} 33. Be2 {[%clk 0:01:43]}  Rc5 {[%clk 0:00:24]} 34. Rxe6 {[%clk 0:01:43]}  Bf7 {[%clk 0:00:25]} 35. Re7 {[%clk 0:01:41]}  Kf8 {[%clk 0:00:23]} 36. Ra7 {[%clk 0:01:41]}  b4 {[%clk 0:00:23]} 37. axb4 {[%clk 0:01:41]}  axb4 {[%clk 0:00:24]} 38. Rxf7+ {[%clk 0:01:38]}  Kxf7 {[%clk 0:00:17]} 39. Rxc4 {[%clk 0:01:39]} 1-0


[Site "https://www.chess.com"]

[Event "Titled Tuesday Blitz August 22 Late 2023"]
[White "Rustemov, Alexander"]
[Black "Czerw, Dawid"]
[WhiteFideId "4119002"]
[BlackFideId "1145746"]
[WhiteElo "2863"]
[BlackElo "2458"]
[Result "1-0"]
[Round "1"]
[TimeControl "180+1"]
[Date "2023.08.22"]
[WhiteClock "0:01:04"]
[BlackClock "0:00:03"]
[Board "56"]

1. d4 {[%clk 0:03:00]}  d5 {[%clk 0:02:59]} 2. c4 {[%clk 0:03:00]}  c6 {[%clk 0:02:59]} 3. Nc3 {[%clk 0:03:01]}  Nf6 {[%clk 0:02:59]} 4. e3 {[%clk 0:03:01]}  a6 {[%clk 0:02:59]} 5. Qc2 {[%clk 0:03:00]}  b5 {[%clk 0:02:58]} 6. b3 {[%clk 0:02:59]}  Bg4 {[%clk 0:02:52]} 7. Bd3 {[%clk 0:02:57]}  e6 {[%clk 0:02:51]} 8. Bb2 {[%clk 0:02:56]}  b4 {[%clk 0:02:48]} 9. Na4 {[%clk 0:02:54]}  Bd6 {[%clk 0:02:42]} 10. Ne2 {[%clk 0:02:42]}  Bh5 {[%clk 0:02:41]} 11. O-O {[%clk 0:02:39]}  Bg6 {[%clk 0:02:40]} 12. Rfc1 {[%clk 0:02:29]}  Nbd7 {[%clk 0:02:35]} 13. a3 {[%clk 0:02:20]}  Bxh2+ {[%clk 0:02:23]} 14. Kxh2 {[%clk 0:02:15]}  Ng4+ {[%clk 0:02:23]} 15. Kg3 {[%clk 0:02:13]}  h5 {[%clk 0:01:20]} 16. Nf4 {[%clk 0:02:12]}  Bxd3 {[%clk 0:01:08]} 17. Nxd3 {[%clk 0:02:03]}  Qf6 {[%clk 0:00:55]} 18. Qe2 {[%clk 0:01:58]}  h4+ {[%clk 0:00:48]} 19. Kh3 {[%clk 0:01:55]}  Nh6 {[%clk 0:00:31]} 20. f3 {[%clk 0:01:46]}  g5 {[%clk 0:00:29]} 21. Kh2 {[%clk 0:01:45]}  Nf5 {[%clk 0:00:26]} 22. cxd5 {[%clk 0:01:31]}  cxd5 {[%clk 0:00:26]} 23. Rc7 {[%clk 0:01:26]}  Ng3 {[%clk 0:00:25]} 24. Qf2 {[%clk 0:01:20]}  Rd8 {[%clk 0:00:16]} 25. Nac5 {[%clk 0:01:14]}  Qg6 {[%clk 0:00:11]} 26. Nxd7 {[%clk 0:01:11]}  Qxd3 {[%clk 0:00:11]} 27. Ne5 {[%clk 0:01:05]}  Qf5 {[%clk 0:00:03]} 28. Rxf7 {[%clk 0:01:04]} 1-0


[Site "https://www.chess.com"]

[Event "Titled Tuesday Blitz August 22 Late 2023"]
[White "Blackburn, Jonathan L B"]
[Black "Lenderman, Aleksandr"]
[WhiteFideId "1801090"]
[BlackFideId "2021285"]
[WhiteElo "2453"]
[BlackElo "2855"]
[Result "0-1"]
[Round "1"]
[TimeControl "180+1"]
[Date "2023.08.22"]
[WhiteClock "0:00:00"]
[BlackClock "0:00:57"]
[Board "59"]

1. d4 {[%clk 0:02:58]}  e6 {[%clk 0:02:57]} 2. c4 {[%clk 0:02:58]}  b6 {[%clk 0:02:55]} 3. Nc3 {[%clk 0:02:56]}  Bb7 {[%clk 0:02:55]} 4. a3 {[%clk 0:02:56]}  Nf6 {[%clk 0:02:54]} 5. Nf3 {[%clk 0:02:55]}  d5 {[%clk 0:02:50]} 6. Bf4 {[%clk 0:02:52]}  Bd6 {[%clk 0:02:46]} 7. Bxd6 {[%clk 0:02:51]}  Qxd6 {[%clk 0:02:45]} 8. e3 {[%clk 0:02:51]}  O-O {[%clk 0:02:44]} 9. cxd5 {[%clk 0:02:39]}  Nxd5 {[%clk 0:02:43]} 10. Nxd5 {[%clk 0:02:38]}  Bxd5 {[%clk 0:02:42]} 11. Bd3 {[%clk 0:02:35]}  Nd7 {[%clk 0:02:40]} 12. O-O {[%clk 0:02:33]}  c5 {[%clk 0:02:37]} 13. e4 {[%clk 0:02:25]}  Bb7 {[%clk 0:02:36]} 14. e5 {[%clk 0:02:25]}  Qe7 {[%clk 0:02:35]} 15. Qe2 {[%clk 0:02:16]}  Rfd8 {[%clk 0:02:24]} 16. h4 {[%clk 0:02:13]}  Bxf3 {[%clk 0:02:22]} 17. Qxf3 {[%clk 0:02:12]}  cxd4 {[%clk 0:02:22]} 18. Qe4 {[%clk 0:01:48]}  g6 {[%clk 0:02:22]} 19. b4 {[%clk 0:01:48]}  a5 {[%clk 0:02:11]} 20. Rab1 {[%clk 0:01:44]}  axb4 {[%clk 0:02:08]} 21. axb4 {[%clk 0:01:44]}  Ra4 {[%clk 0:02:07]} 22. h5 {[%clk 0:01:26]}  Rxb4 {[%clk 0:02:02]} 23. Rxb4 {[%clk 0:01:27]}  Qxb4 {[%clk 0:02:03]} 24. Rb1 {[%clk 0:01:21]}  Qe7 {[%clk 0:01:58]} 25. Qb7 {[%clk 0:01:02]}  Qc5 {[%clk 0:01:47]} 26. f4 {[%clk 0:00:58]}  Qc3 {[%clk 0:01:40]} 27. Bb5 {[%clk 0:00:35]}  Qe3+ {[%clk 0:01:30]} 28. Kh1 {[%clk 0:00:35]}  Nf8 {[%clk 0:01:28]} 29. Qe7 {[%clk 0:00:31]}  Ra8 {[%clk 0:01:21]} 30. Bc6 {[%clk 0:00:21]}  Rc8 {[%clk 0:01:17]} 31. Qf6 {[%clk 0:00:18]}  gxh5 {[%clk 0:01:11]} 32. Rf1 {[%clk 0:00:15]}  Qg3 {[%clk 0:01:00]} 33. Rf3 {[%clk 0:00:13]}  Qg7 {[%clk 0:01:00]} 34. Bd7 {[%clk 0:00:10]}  Qxf6 {[%clk 0:00:57]} 35. exf6 {[%clk 0:00:00]}  Nxd7 {[%clk 0:00:57]} 0-1


[Site "https://www.chess.com"]

[Event "Titled Tuesday Blitz August 22 Late 2023"]
[White "Szyszylo, Rafal"]
[Black "Pakleza, Zbigniew"]
[WhiteFideId "1109626"]
[BlackFideId "1119290"]
[WhiteElo "2451"]
[BlackElo "2834"]
[Result "0-1"]
[Round "1"]
[TimeControl "180+1"]
[Date "2023.08.22"]
[WhiteClock "0:00:00"]
[BlackClock "0:00:09"]
[Board "61"]

1. e4 {[%clk 0:03:00]}  d6 {[%clk 0:02:59]} 2. d4 {[%clk 0:02:59]}  Nf6 {[%clk 0:03:00]} 3. Nc3 {[%clk 0:02:57]}  c6 {[%clk 0:03:00]} 4. Be3 {[%clk 0:02:50]}  Qb6 {[%clk 0:03:00]} 5. Rb1 {[%clk 0:02:49]}  Ng4 {[%clk 0:02:59]} 6. Qd2 {[%clk 0:02:46]}  Nxe3 {[%clk 0:02:56]} 7. Qxe3 {[%clk 0:02:47]}  e6 {[%clk 0:02:52]} 8. Nf3 {[%clk 0:02:47]}  Be7 {[%clk 0:02:52]} 9. Bd3 {[%clk 0:02:47]}  d5 {[%clk 0:02:50]} 10. O-O {[%clk 0:02:46]}  Qd8 {[%clk 0:02:43]} 11. Rbd1 {[%clk 0:02:31]}  O-O {[%clk 0:02:40]} 12. Rfe1 {[%clk 0:02:31]}  Re8 {[%clk 0:02:27]} 13. e5 {[%clk 0:02:07]}  Nd7 {[%clk 0:02:20]} 14. Ne2 {[%clk 0:02:05]}  c5 {[%clk 0:02:16]} 15. c3 {[%clk 0:02:06]}  b6 {[%clk 0:02:12]} 16. Ng3 {[%clk 0:02:05]}  Nf8 {[%clk 0:02:01]} 17. Bb1 {[%clk 0:01:57]}  Ba6 {[%clk 0:01:57]} 18. Qf4 {[%clk 0:01:37]}  Rc8 {[%clk 0:01:49]} 19. Qg4 {[%clk 0:01:35]}  Ng6 {[%clk 0:01:31]} 20. Nh5 {[%clk 0:01:32]}  cxd4 {[%clk 0:01:25]} 21. cxd4 {[%clk 0:01:30]}  Rc7 {[%clk 0:01:00]} 22. g3 {[%clk 0:01:29]}  Bb4 {[%clk 0:00:55]} 23. Re3 {[%clk 0:01:22]}  Qc8 {[%clk 0:00:52]} 24. Ng5 {[%clk 0:00:45]}  Rc1 {[%clk 0:00:48]} 25. Kg2 {[%clk 0:00:43]}  Be7 {[%clk 0:00:40]} 26. h4 {[%clk 0:00:42]}  Bxg5 {[%clk 0:00:28]} 27. hxg5 {[%clk 0:00:43]}  Qc4 {[%clk 0:00:26]} 28. Ree1 {[%clk 0:00:38]}  Rxd1 {[%clk 0:00:23]} 29. Rxd1 {[%clk 0:00:39]}  Rc8 {[%clk 0:00:21]} 30. Nf4 {[%clk 0:00:33]}  Qa4 {[%clk 0:00:10]} 31. Rh1 {[%clk 0:00:32]}  Qb4 {[%clk 0:00:05]} 32. Nxe6 {[%clk 0:00:26]}  Re8 {[%clk 0:00:02]} 33. Nc7 {[%clk 0:00:24]}  Rxe5 {[%clk 0:00:01]} 34. Nxa6 {[%clk 0:00:22]}  Qa4 {[%clk 0:00:02]} 35. Qc8+ {[%clk 0:00:22]}  Re8 {[%clk 0:00:02]} 36. Qb7 {[%clk 0:00:19]}  Qxd4 {[%clk 0:00:02]} 37. Bxg6 {[%clk 0:00:18]}  hxg6 {[%clk 0:00:02]} 38. Nc7 {[%clk 0:00:16]}  Qe4+ {[%clk 0:00:02]} 39. Kh2 {[%clk 0:00:14]}  Qe7 {[%clk 0:00:02]} 40. Qc6 {[%clk 0:00:13]}  Rd8 {[%clk 0:00:02]} 41. Nxd5 {[%clk 0:00:12]}  Qxg5 {[%clk 0:00:03]} 42. Ne3 {[%clk 0:00:10]}  Qh5+ {[%clk 0:00:02]} 43. Kg2 {[%clk 0:00:10]}  Qe5 {[%clk 0:00:03]} 44. Qf3 {[%clk 0:00:09]}  Qxb2 {[%clk 0:00:03]} 45. Ng4 {[%clk 0:00:08]}  Qd4 {[%clk 0:00:02]} 46. Qf4 {[%clk 0:00:08]}  Qd5+ {[%clk 0:00:02]} 47. Qf3 {[%clk 0:00:08]}  Qd6 {[%clk 0:00:03]} 48. Ne3 {[%clk 0:00:08]}  Qe6 {[%clk 0:00:02]} 49. Rh4 {[%clk 0:00:08]}  Qxa2 {[%clk 0:00:02]} 50. Rf4 {[%clk 0:00:08]}  Qe6 {[%clk 0:00:02]} 51. Re4 {[%clk 0:00:08]}  Qd6 {[%clk 0:00:02]} 52. Qf4 {[%clk 0:00:08]}  Qxf4 {[%clk 0:00:02]} 53. Rxf4 {[%clk 0:00:08]}  Ra8 {[%clk 0:00:03]} 54. Rb4 {[%clk 0:00:08]}  Kf8 {[%clk 0:00:03]} 55. Nd5 {[%clk 0:00:09]}  Rd8 {[%clk 0:00:02]} 56. Nxb6 {[%clk 0:00:05]}  axb6 {[%clk 0:00:02]} 57. Rxb6 {[%clk 0:00:06]}  f6 {[%clk 0:00:02]} 58. Rb7 {[%clk 0:00:07]}  Kg8 {[%clk 0:00:02]} 59. Rc7 {[%clk 0:00:07]}  g5 {[%clk 0:00:03]} 60. Rb7 {[%clk 0:00:07]}  Kh7 {[%clk 0:00:03]} 61. g4 {[%clk 0:00:07]}  Kg6 {[%clk 0:00:04]} 62. f3 {[%clk 0:00:07]}  Rd2+ {[%clk 0:00:04]} 63. Kg3 {[%clk 0:00:07]}  Rd1 {[%clk 0:00:05]} 64. Kg2 {[%clk 0:00:07]}  Rd6 {[%clk 0:00:05]} 65. Kg3 {[%clk 0:00:07]}  Kh6 {[%clk 0:00:06]} 66. Kg2 {[%clk 0:00:07]}  g6 {[%clk 0:00:06]} 67. Rc7 {[%clk 0:00:07]}  f5 {[%clk 0:00:07]} 68. gxf5 {[%clk 0:00:06]}  gxf5 {[%clk 0:00:08]} 69. Re7 {[%clk 0:00:05]}  Rd2+ {[%clk 0:00:06]} 70. Kg3 {[%clk 0:00:04]}  Rd3 {[%clk 0:00:07]} 71. Kg2 {[%clk 0:00:04]}  Kg6 {[%clk 0:00:07]} 72. Re6+ {[%clk 0:00:04]}  Kh5 {[%clk 0:00:08]} 73. Re8 {[%clk 0:00:04]}  Rd2+ {[%clk 0:00:08]} 74. Kg3 {[%clk 0:00:04]}  Rd3 {[%clk 0:00:08]} 75. Kg2 {[%clk 0:00:04]}  Kg6 {[%clk 0:00:09]} 76. Rg8+ {[%clk 0:00:03]}  Kf6 {[%clk 0:00:09]} 77. Rf8+ {[%clk 0:00:04]}  Ke5 {[%clk 0:00:10]} 78. Re8+ {[%clk 0:00:04]}  Kf4 {[%clk 0:00:10]} 79. Rf8 {[%clk 0:00:03]}  Rd2+ {[%clk 0:00:09]} 80. Kh3 {[%clk 0:00:00]}  Rf2 {[%clk 0:00:09]} 0-1


[Site "https://www.chess.com"]

[Event "Titled Tuesday Blitz August 22 Late 2023"]
[White "Klukin, Kirill"]
[Black "Kirillov, Dmitry"]
[WhiteFideId "24199273"]
[BlackFideId "34180572"]
[WhiteElo "2834"]
[BlackElo "2449"]
[Result "0-1"]
[Round "1"]
[TimeControl "180+1"]
[Date "2023.08.22"]
[WhiteClock "0:00:00"]
[BlackClock "0:00:15"]
[Board "62"]

1. d4 {[%clk 0:02:57]}  Nf6 {[%clk 0:02:59]} 2. Nf3 {[%clk 0:02:58]}  e6 {[%clk 0:03:00]} 3. e3 {[%clk 0:02:57]}  d5 {[%clk 0:02:55]} 4. Bd3 {[%clk 0:02:57]}  Bd6 {[%clk 0:02:54]} 5. b3 {[%clk 0:02:56]}  O-O {[%clk 0:02:54]} 6. Bb2 {[%clk 0:02:56]}  b6 {[%clk 0:02:55]} 7. O-O {[%clk 0:02:56]}  Bb7 {[%clk 0:02:56]} 8. Nbd2 {[%clk 0:02:57]}  Nbd7 {[%clk 0:02:56]} 9. Qe2 {[%clk 0:02:56]}  a6 {[%clk 0:02:55]} 10. Ne5 {[%clk 0:02:56]}  Ne4 {[%clk 0:02:47]} 11. Nxd7 {[%clk 0:02:32]}  Qxd7 {[%clk 0:02:46]} 12. Bxe4 {[%clk 0:02:31]}  dxe4 {[%clk 0:02:46]} 13. c4 {[%clk 0:02:32]}  f5 {[%clk 0:02:44]} 14. Rfd1 {[%clk 0:02:30]}  Qe7 {[%clk 0:02:42]} 15. Rac1 {[%clk 0:02:29]}  Rf6 {[%clk 0:02:33]} 16. g3 {[%clk 0:01:59]}  Rg6 {[%clk 0:02:25]} 17. c5 {[%clk 0:01:55]}  bxc5 {[%clk 0:02:15]} 18. dxc5 {[%clk 0:01:55]}  Bxc5 {[%clk 0:02:16]} 19. Nc4 {[%clk 0:01:56]}  Bd5 {[%clk 0:01:35]} 20. Ne5 {[%clk 0:01:47]}  Rh6 {[%clk 0:01:33]} 21. Bd4 {[%clk 0:01:43]}  Bd6 {[%clk 0:01:31]} 22. Qb2 {[%clk 0:01:43]}  Qg5 {[%clk 0:01:26]} 23. Nc4 {[%clk 0:01:29]}  Qh5 {[%clk 0:01:19]} 24. h4 {[%clk 0:01:29]}  Qg4 {[%clk 0:01:15]} 25. Be5 {[%clk 0:01:25]}  Rxh4 {[%clk 0:01:09]} 26. Bxd6 {[%clk 0:01:13]}  cxd6 {[%clk 0:00:58]} 27. Nxd6 {[%clk 0:01:13]}  Rh6 {[%clk 0:00:22]} 28. f4 {[%clk 0:00:10]}  exf3 {[%clk 0:00:19]} 29. Qf2 {[%clk 0:00:00]}  Qh3 {[%clk 0:00:15]} 0-1


[Site "https://www.chess.com"]